[Event "*** SCC Grand Prix: Titled Tuesday Blitz"]
[Site "Chess.com"]
[Date "2020.08.11"]
[Round "4"]
[White "Chesswizard_2007"]
[Black "UmbertoConcelli"]
[Result "0-1"]
[WhiteElo "2503"]
[BlackElo "2711"]
[TimeControl "180+1"]
[EndTime "10:39:25 PDT"]
[Termination "UmbertoConcelli won by resignation"]

1. d4 {[%clk 0:03:00.9]} 1... Nf6 {[%clk 0:02:57.9]} 2. c4 {[%clk 0:02:58]} 2...
g6 {[%clk 0:02:57.7]} 3. f3 {[%clk 0:02:57.4]} 3... Nc6 {[%clk 0:02:56.6]} 4. d5
{[%clk 0:02:56.6]} 4... Ne5 {[%clk 0:02:56.7]} 5. e4 {[%clk 0:02:57.5]} 5... d6
{[%clk 0:02:53.5]} 6. Nc3 {[%clk 0:02:57.1]} 6... Bg7 {[%clk 0:02:49.6]} 7. Be3
{[%clk 0:02:55.4]} 7... O-O {[%clk 0:02:46.5]} 8. Qd2 {[%clk 0:02:54]} 8... c6
{[%clk 0:02:45]} 9. h4 {[%clk 0:02:53.3]} 9... cxd5 {[%clk 0:02:43.4]} 10. cxd5
{[%clk 0:02:54.2]} 10... h5 {[%clk 0:02:37.3]} 11. Nh3 {[%clk 0:02:47.1]} 11...
Bxh3 {[%clk 0:02:36.1]} 12. Rxh3 {[%clk 0:02:47.8]} 12... Rc8 {[%clk 0:02:36.4]}
13. O-O-O {[%clk 0:02:42]} 13... a6 {[%clk 0:02:24.5]} 14. Kb1 {[%clk
0:02:41.5]} 14... b5 {[%clk 0:02:24.5]} 15. Be2 {[%clk 0:02:38]} 15... Nc4
{[%clk 0:02:15.9]} 16. Bxc4 {[%clk 0:02:35.7]} 16... Rxc4 {[%clk 0:02:16.8]} 17.
Rhh1 {[%clk 0:02:33.9]} 17... Nd7 {[%clk 0:02:07.7]} 18. Ne2 {[%clk 0:02:32.1]}
18... Ne5 {[%clk 0:02:03.5]} 19. Rc1 {[%clk 0:02:27.2]} 19... Rxc1+ {[%clk
0:02:01.3]} 20. Rxc1 {[%clk 0:02:25.4]} 20... Nc4 {[%clk 0:02:00.9]} 21. Rxc4
{[%clk 0:01:55.1]} 21... bxc4 {[%clk 0:02:01.8]} 22. Nd4 {[%clk 0:01:55.5]}
22... Qd7 {[%clk 0:01:48.5]} 23. Nc6 {[%clk 0:01:54.2]} 23... Qb7 {[%clk
0:01:41.8]} 24. Bd4 {[%clk 0:01:52.5]} 24... e5 {[%clk 0:00:55.7]} 25. Bc3
{[%clk 0:01:39.9]} 25... Bf6 {[%clk 0:00:54.9]} 26. g3 {[%clk 0:01:35.2]} 26...
Qb6 {[%clk 0:00:46.8]} 27. Qe1 {[%clk 0:01:29.9]} 27... Rc8 {[%clk 0:00:43]} 28.
f4 {[%clk 0:01:24.9]} 28... Rxc6 {[%clk 0:00:40.3]} 29. dxc6 {[%clk 0:01:25.8]}
29... Qxc6 {[%clk 0:00:41.2]} 30. fxe5 {[%clk 0:01:19.4]} 30... Bxe5 {[%clk
0:00:40.8]} 31. Bxe5 {[%clk 0:01:19.5]} 31... dxe5 {[%clk 0:00:41.7]} 32. Qe3
{[%clk 0:01:19]} 32... Kg7 {[%clk 0:00:41]} 33. Kc2 {[%clk 0:01:18.1]} 33...
Qa4+ {[%clk 0:00:40.8]} 34. Kd2 {[%clk 0:00:48]} 34... Qxa2 {[%clk 0:00:38.2]}
35. Qc3 {[%clk 0:00:47.5]} 35... Kf6 {[%clk 0:00:27.5]} 36. Qb4 {[%clk
0:00:45.1]} 36... Qb3 {[%clk 0:00:17.1]} 37. Qd6+ {[%clk 0:00:44.3]} 37... Kg7
{[%clk 0:00:17.6]} 38. Qxe5+ {[%clk 0:00:44.9]} 38... Kh7 {[%clk 0:00:17.9]} 39.
Qf6 {[%clk 0:00:42.5]} 39... Qd3+ {[%clk 0:00:17.3]} 40. Kc1 {[%clk 0:00:42.4]}
40... Kg8 {[%clk 0:00:17]} 41. e5 {[%clk 0:00:39.4]} 41... c3 {[%clk 0:00:15.4]}
42. bxc3 {[%clk 0:00:40.3]} 42... Qxc3+ {[%clk 0:00:16.3]} 43. Kb1 {[%clk
0:00:40.9]} 43... Qxg3 {[%clk 0:00:16]} 44. e6 {[%clk 0:00:38]} 44... Qe1+
{[%clk 0:00:15.8]} 45. Kc2 {[%clk 0:00:34.7]} 45... Qxe6 {[%clk 0:00:16.7]} 0-1

[Event "*** SCC Grand Prix: Titled Tuesday Blitz"]
[Site "Chess.com"]
[Date "2020.08.11"]
[Round "4"]
[White "deribas12345"]
[Black "anon569"]
[Result "1-0"]
[WhiteElo "2603"]
[BlackElo "2353"]
[TimeControl "180+1"]
[EndTime "10:39:26 PDT"]
[Termination "deribas12345 won on time"]

1. d4 {[%clk 0:02:57.6]} 1... Nf6 {[%clk 0:02:58.6]} 2. c4 {[%clk 0:02:54.6]}
2... e6 {[%clk 0:02:58.6]} 3. Nc3 {[%clk 0:02:51.6]} 3... Bb4 {[%clk 0:02:48.6]}
4. a3 {[%clk 0:02:46.1]} 4... Bxc3+ {[%clk 0:02:46.2]} 5. bxc3 {[%clk 0:02:47]}
5... b6 {[%clk 0:02:44.4]} 6. f3 {[%clk 0:02:46.3]} 6... Qe7 {[%clk 0:02:34.6]}
7. e4 {[%clk 0:02:44.9]} 7... e5 {[%clk 0:02:32.6]} 8. Bd3 {[%clk 0:02:43.1]}
8... Bb7 {[%clk 0:02:30.8]} 9. Ne2 {[%clk 0:02:41.6]} 9... d6 {[%clk 0:02:25.3]}
10. O-O {[%clk 0:02:40.5]} 10... Nbd7 {[%clk 0:02:24.5]} 11. Ng3 {[%clk
0:02:29.7]} 11... g6 {[%clk 0:02:21.8]} 12. f4 {[%clk 0:02:28.6]} 12... exf4
{[%clk 0:02:12.1]} 13. Bxf4 {[%clk 0:02:27.4]} 13... O-O-O {[%clk 0:02:11]} 14.
Qf3 {[%clk 0:02:19.6]} 14... h6 {[%clk 0:02:00.9]} 15. Rae1 {[%clk 0:02:18.5]}
15... Rde8 {[%clk 0:01:38.9]} 16. h3 {[%clk 0:02:13]} 16... Qf8 {[%clk
0:01:18.1]} 17. Qf2 {[%clk 0:02:00.2]} 17... Qg7 {[%clk 0:01:03.1]} 18. Bd2
{[%clk 0:01:52.4]} 18... Rhf8 {[%clk 0:00:46.1]} 19. Qf4 {[%clk 0:01:46.3]}
19... Ng8 {[%clk 0:00:36.6]} 20. a4 {[%clk 0:01:40.2]} 20... a5 {[%clk
0:00:34.4]} 21. Kh1 {[%clk 0:01:22.3]} 21... Re7 {[%clk 0:00:32.7]} 22. Qf2
{[%clk 0:01:14.9]} 22... Rfe8 {[%clk 0:00:31.5]} 23. Rb1 {[%clk 0:01:06.8]}
23... Ndf6 {[%clk 0:00:17.6]} 24. c5 {[%clk 0:00:59.6]} 24... dxc5 {[%clk
0:00:15.3]} 25. dxc5 {[%clk 0:00:59.2]} 25... Nd7 {[%clk 0:00:14]} 26. cxb6
{[%clk 0:00:56.7]} 26... cxb6 {[%clk 0:00:14.9]} 27. Rxb6 {[%clk 0:00:54.2]}
27... Nxb6 {[%clk 0:00:14]} 28. Qxb6 {[%clk 0:00:55.1]} 28... Qe5 {[%clk
0:00:14.3]} 29. Bf4 {[%clk 0:00:52.3]} 29... Qe6 {[%clk 0:00:11.1]} 30. Qxa5
{[%clk 0:00:47.2]} 30... g5 {[%clk 0:00:09.3]} 31. Qc5+ {[%clk 0:00:32]} 31...
Qc6 {[%clk 0:00:07.2]} 32. Qxc6+ {[%clk 0:00:32.4]} 32... Bxc6 {[%clk
0:00:08.1]} 33. Bd6 {[%clk 0:00:33]} 33... Rd7 {[%clk 0:00:07.9]} 34. e5 {[%clk
0:00:33.4]} 34... Bxa4 {[%clk 0:00:07.4]} 35. Bf5 {[%clk 0:00:31.1]} 1-0

[Event "*** SCC Grand Prix: Titled Tuesday Blitz"]
[Site "Chess.com"]
[Date "2020.08.11"]
[Round "4"]
[White "LyonBeast"]
[Black "Adham_Fawzy"]
[Result "1-0"]
[WhiteElo "3016"]
[BlackElo "2726"]
[TimeControl "180+1"]
[EndTime "10:39:29 PDT"]
[Termination "LyonBeast won on time"]

1. Nf3 {[%clk 0:03:00.9]} 1... c5 {[%clk 0:02:58.5]} 2. b3 {[%clk 0:02:59.9]}
2... Nc6 {[%clk 0:02:58.3]} 3. Bb2 {[%clk 0:02:59.3]} 3... d6 {[%clk 0:02:58.7]}
4. d4 {[%clk 0:02:55.2]} 4... cxd4 {[%clk 0:02:59]} 5. Nxd4 {[%clk 0:02:56.1]}
5... Nf6 {[%clk 0:02:59.4]} 6. e3 {[%clk 0:02:51.4]} 6... g6 {[%clk 0:02:59.4]}
7. Nxc6 {[%clk 0:02:51]} 7... bxc6 {[%clk 0:03:00.3]} 8. Bxf6 {[%clk 0:02:51]}
8... exf6 {[%clk 0:03:01.2]} 9. c4 {[%clk 0:02:48.2]} 9... Bg7 {[%clk 0:02:57]}
10. Nc3 {[%clk 0:02:48.5]} 10... f5 {[%clk 0:02:48.3]} 11. Rc1 {[%clk 0:02:49]}
11... Qa5 {[%clk 0:02:41.5]} 12. Qd2 {[%clk 0:02:48.3]} 12... O-O {[%clk
0:02:20.6]} 13. Be2 {[%clk 0:02:47.4]} 13... Rd8 {[%clk 0:02:09.1]} 14. O-O
{[%clk 0:02:35]} 14... d5 {[%clk 0:02:07]} 15. cxd5 {[%clk 0:02:34.5]} 15...
cxd5 {[%clk 0:02:02.6]} 16. Bf3 {[%clk 0:02:34]} 16... Ba6 {[%clk 0:01:55.4]}
17. Rfd1 {[%clk 0:02:26.1]} 17... Rac8 {[%clk 0:01:41.3]} 18. Nb1 {[%clk
0:02:26.2]} 18... Qxd2 {[%clk 0:01:36.4]} 19. Nxd2 {[%clk 0:02:27.1]} 19... Rxc1
{[%clk 0:01:36.3]} 20. Rxc1 {[%clk 0:02:28]} 20... d4 {[%clk 0:01:36.6]} 21.
exd4 {[%clk 0:02:19.6]} 21... Bh6 {[%clk 0:01:24.2]} 22. Rc6 {[%clk 0:02:00.4]}
22... Bb7 {[%clk 0:01:15.5]} 23. Rc7 {[%clk 0:01:54.4]} 23... Rxd4 {[%clk
0:00:37.6]} 24. Rxb7 {[%clk 0:01:48.2]} 24... Rxd2 {[%clk 0:00:37]} 25. Rxa7
{[%clk 0:01:48.2]} 25... Bf8 {[%clk 0:00:37.5]} 26. Ra5 {[%clk 0:01:37]} 26...
Bb4 {[%clk 0:00:32.3]} 27. Ra4 {[%clk 0:01:27.9]} 27... Bc5 {[%clk 0:00:28.5]}
28. Kf1 {[%clk 0:01:26.5]} 28... Rxf2+ {[%clk 0:00:23.9]} 29. Ke1 {[%clk
0:01:26.9]} 29... Rb2 {[%clk 0:00:24.7]} 30. h3 {[%clk 0:01:26.6]} 30... h5
{[%clk 0:00:20.1]} 31. Kd1 {[%clk 0:01:26.4]} 31... Kg7 {[%clk 0:00:14.7]} 32.
Rc4 {[%clk 0:01:25.3]} 32... Be7 {[%clk 0:00:14.2]} 33. Rc2 {[%clk 0:01:25.4]}
33... Rb1+ {[%clk 0:00:13.6]} 34. Kd2 {[%clk 0:01:24.6]} 34... Kh6 {[%clk
0:00:13.8]} 35. Kc3 {[%clk 0:01:23.2]} 35... g5 {[%clk 0:00:14]} 36. Bd5 {[%clk
0:01:20.8]} 36... Kg6 {[%clk 0:00:13.1]} 37. Re2 {[%clk 0:01:18.7]} 37... Bf6+
{[%clk 0:00:12.6]} 38. Kc2 {[%clk 0:01:18.7]} 38... Rb2+ {[%clk 0:00:12.2]} 39.
Kd3 {[%clk 0:01:19.2]} 39... Rb1 {[%clk 0:00:12.5]} 40. Kc4 {[%clk 0:01:17.2]}
40... Rc1+ {[%clk 0:00:10.7]} 41. Kb5 {[%clk 0:01:16.9]} 41... g4 {[%clk
0:00:09.6]} 42. a4 {[%clk 0:01:16.6]} 42... f4 {[%clk 0:00:10]} 43. hxg4 {[%clk
0:01:16.7]} 43... hxg4 {[%clk 0:00:10]} 44. a5 {[%clk 0:01:17.1]} 44... Bd4
{[%clk 0:00:10.2]} 45. b4 {[%clk 0:01:16.1]} 45... f3 {[%clk 0:00:09.2]} 46.
gxf3 {[%clk 0:01:15.9]} 46... g3 {[%clk 0:00:09.6]} 47. f4 {[%clk 0:01:14.3]}
47... Kf5 {[%clk 0:00:09.9]} 48. Bxf7 {[%clk 0:01:13.6]} 48... Kxf4 {[%clk
0:00:09.1]} 49. Bd5 {[%clk 0:01:14.2]} 49... Be3 {[%clk 0:00:08.7]} 50. a6
{[%clk 0:01:14.1]} 50... Bf2 {[%clk 0:00:07.2]} 51. Bg2 {[%clk 0:01:13.1]} 51...
Ra1 {[%clk 0:00:05]} 52. Re7 {[%clk 0:01:09.5]} 52... Rg1 {[%clk 0:00:04.3]} 53.
Rf7+ {[%clk 0:01:09.3]} 53... Ke5 {[%clk 0:00:03.7]} 54. Bc6 {[%clk 0:01:09.3]}
54... Ra1 {[%clk 0:00:03.6]} 55. Bb7 {[%clk 0:01:08.6]} 1-0

[Event "*** SCC Grand Prix: Titled Tuesday Blitz"]
[Site "Chess.com"]
[Date "2020.08.11"]
[Round "4"]
[White "artichaud"]
[Black "AustrianFalcon"]
[Result "0-1"]
[WhiteElo "2148"]
[BlackElo "2467"]
[TimeControl "180+1"]
[EndTime "10:39:29 PDT"]
[Termination "AustrianFalcon won on time"]

1. f4 {[%clk 0:02:59.7]} 1... g6 {[%clk 0:02:50.4]} 2. e3 {[%clk 0:02:57.7]}
2... Bg7 {[%clk 0:02:51.3]} 3. Nf3 {[%clk 0:02:57.1]} 3... Nf6 {[%clk
0:02:48.3]} 4. d3 {[%clk 0:02:43.9]} 4... O-O {[%clk 0:02:49.2]} 5. Nc3 {[%clk
0:02:41.3]} 5... d5 {[%clk 0:02:48.8]} 6. g3 {[%clk 0:02:36.2]} 6... c5 {[%clk
0:02:44]} 7. Bg2 {[%clk 0:02:35.9]} 7... Nc6 {[%clk 0:02:44.6]} 8. O-O {[%clk
0:02:35.2]} 8... Qc7 {[%clk 0:02:36.1]} 9. e4 {[%clk 0:02:29.3]} 9... dxe4
{[%clk 0:02:21.4]} 10. dxe4 {[%clk 0:02:24.4]} 10... e5 {[%clk 0:02:21.8]} 11.
Nd5 {[%clk 0:02:16.1]} 11... Nxd5 {[%clk 0:02:14.6]} 12. exd5 {[%clk 0:02:17]}
12... Nd4 {[%clk 0:02:15.2]} 13. Nxe5 {[%clk 0:02:13.1]} 13... Bxe5 {[%clk
0:02:04.7]} 14. fxe5 {[%clk 0:02:14]} 14... Qxe5 {[%clk 0:02:05.6]} 15. c3
{[%clk 0:02:04.7]} 15... Ne2+ {[%clk 0:01:56.7]} 16. Kh1 {[%clk 0:02:04.5]}
16... Bg4 {[%clk 0:01:57.4]} 17. Qd3 {[%clk 0:01:41.8]} 17... Rfe8 {[%clk
0:01:46.7]} 18. Bd2 {[%clk 0:01:17.3]} 18... Rad8 {[%clk 0:01:13.2]} 19. Rae1
{[%clk 0:01:15.4]} 19... b5 {[%clk 0:00:53.6]} 20. Qxb5 {[%clk 0:01:00.3]} 20...
Qh5 {[%clk 0:00:52.1]} 21. Bf4 {[%clk 0:00:48.8]} 21... g5 {[%clk 0:00:33.3]}
22. Bc7 {[%clk 0:00:47.4]} 22... Rd7 {[%clk 0:00:30.7]} 23. d6 {[%clk
0:00:21.9]} 23... Nxg3+ {[%clk 0:00:23.5]} 24. Kg1 {[%clk 0:00:21.5]} 24... Ne2+
{[%clk 0:00:20.7]} 25. Kh1 {[%clk 0:00:17.1]} 25... Re3 {[%clk 0:00:20.6]} 26.
Rxe2 {[%clk 0:00:09.1]} 26... Bxe2 {[%clk 0:00:17.7]} 27. Qxd7 {[%clk
0:00:06.9]} 27... Bxf1 {[%clk 0:00:18.3]} 0-1

[Event "*** SCC Grand Prix: Titled Tuesday Blitz"]
[Site "Chess.com"]
[Date "2020.08.11"]
[Round "4"]
[White "BJthechessgod"]
[Black "GianmarcoVaR"]
[Result "0-1"]
[WhiteElo "2249"]
[BlackElo "2449"]
[TimeControl "180+1"]
[EndTime "10:39:30 PDT"]
[Termination "GianmarcoVaR won by checkmate"]

1. e4 {[%clk 0:03:00.9]} 1... c6 {[%clk 0:02:54.5]} 2. d4 {[%clk 0:03:00.4]}
2... d5 {[%clk 0:02:54.7]} 3. Nc3 {[%clk 0:03:01.2]} 3... dxe4 {[%clk
0:02:54.6]} 4. Nxe4 {[%clk 0:03:02.1]} 4... Nf6 {[%clk 0:02:54.6]} 5. Nxf6+
{[%clk 0:03:02.2]} 5... exf6 {[%clk 0:02:54.9]} 6. c3 {[%clk 0:03:02.8]} 6...
Bd6 {[%clk 0:02:55.1]} 7. Bd3 {[%clk 0:03:03.3]} 7... O-O {[%clk 0:02:53.4]} 8.
Qc2 {[%clk 0:03:03.6]} 8... h6 {[%clk 0:02:53.7]} 9. Ne2 {[%clk 0:02:57]} 9...
Be6 {[%clk 0:02:52]} 10. Bf4 {[%clk 0:02:53.8]} 10... Re8 {[%clk 0:02:40.6]} 11.
O-O-O {[%clk 0:02:48.7]} 11... Bxa2 {[%clk 0:02:24]} 12. Bxd6 {[%clk 0:02:21]}
12... Qxd6 {[%clk 0:02:24.9]} 13. c4 {[%clk 0:02:09.3]} 13... Qb4 {[%clk
0:02:24.3]} 14. Qc3 {[%clk 0:01:56.4]} 14... Na6 {[%clk 0:02:16.2]} 15. Kc2
{[%clk 0:01:34.4]} 15... Qa4+ {[%clk 0:01:53.2]} 16. b3 {[%clk 0:01:32]} 16...
Bxb3+ {[%clk 0:01:33.5]} 17. Qxb3 {[%clk 0:01:30.1]} 17... Nb4+ {[%clk
0:01:33.8]} 18. Kc3 {[%clk 0:01:28.9]} 18... Qxb3+ {[%clk 0:01:33.8]} 19. Kxb3
{[%clk 0:01:29.8]} 19... Nxd3 {[%clk 0:01:34.1]} 20. Rd2 {[%clk 0:01:20.8]}
20... Nxf2 {[%clk 0:01:33]} 21. Rf1 {[%clk 0:01:20.5]} 21... Ne4 {[%clk
0:01:29.8]} 22. Rd3 {[%clk 0:01:20.1]} 22... Rad8 {[%clk 0:01:29.2]} 23. Nf4
{[%clk 0:01:18.3]} 23... g5 {[%clk 0:01:26.8]} 24. Nh5 {[%clk 0:01:18.4]} 24...
Nc5+ {[%clk 0:01:27.2]} 25. dxc5 {[%clk 0:01:06.8]} 25... Rxd3+ {[%clk 0:01:27]}
26. Kc2 {[%clk 0:01:07.7]} 26... Red8 {[%clk 0:01:13.4]} 27. Nxf6+ {[%clk
0:01:04.2]} 27... Kf8 {[%clk 0:01:11]} 28. Ng4 {[%clk 0:01:02.6]} 28... Rd2+
{[%clk 0:01:04.7]} 29. Kc1 {[%clk 0:01:01.9]} 29... Rxg2 {[%clk 0:01:02.7]} 30.
Nxh6 {[%clk 0:00:59.9]} 30... Rd7 {[%clk 0:00:41.5]} 31. h3 {[%clk 0:00:47.7]}
31... Rh2 {[%clk 0:00:39.8]} 32. Rf3 {[%clk 0:00:46.2]} 32... Re7 {[%clk
0:00:34.4]} 33. Kd1 {[%clk 0:00:41.7]} 33... a5 {[%clk 0:00:29.2]} 34. Nf5
{[%clk 0:00:39.4]} 34... Ree2 {[%clk 0:00:26.4]} 35. Nd6 {[%clk 0:00:38.1]}
35... Ra2 {[%clk 0:00:23.5]} 36. Rxf7+ {[%clk 0:00:23.7]} 36... Kg8 {[%clk
0:00:23.8]} 37. Rf2 {[%clk 0:00:18.3]} 37... Rhxf2 {[%clk 0:00:22.5]} 38. Ke1
{[%clk 0:00:19.2]} 38... Rh2 {[%clk 0:00:22.1]} 39. Kf1 {[%clk 0:00:18.8]} 39...
Ra1# {[%clk 0:00:22]} 0-1

[Event "*** SCC Grand Prix: Titled Tuesday Blitz"]
[Site "Chess.com"]
[Date "2020.08.11"]
[Round "4"]
[White "Spriteball"]
[Black "Ural_bogatyr"]
[Result "0-1"]
[WhiteElo "2069"]
[BlackElo "2369"]
[TimeControl "180+1"]
[EndTime "10:39:31 PDT"]
[Termination "Ural_bogatyr won by checkmate"]

1. d4 {[%clk 0:03:00.9]} 1... Nf6 {[%clk 0:02:58.9]} 2. c4 {[%clk 0:03:00.6]}
2... e5 {[%clk 0:02:56]} 3. dxe5 {[%clk 0:03:00.2]} 3... Ng4 {[%clk 0:02:53.6]}
4. Nf3 {[%clk 0:02:59.5]} 4... Bc5 {[%clk 0:02:51.9]} 5. e3 {[%clk 0:02:58.5]}
5... Nc6 {[%clk 0:02:50.8]} 6. Be2 {[%clk 0:02:53.6]} 6... O-O {[%clk
0:02:50.1]} 7. O-O {[%clk 0:02:50.5]} 7... Re8 {[%clk 0:02:48.3]} 8. a3 {[%clk
0:02:49.2]} 8... a5 {[%clk 0:02:47.3]} 9. Nc3 {[%clk 0:02:48.9]} 9... Ngxe5
{[%clk 0:02:46.8]} 10. Nxe5 {[%clk 0:02:47.9]} 10... Nxe5 {[%clk 0:02:47.7]} 11.
b3 {[%clk 0:02:38]} 11... Ra6 {[%clk 0:02:47.2]} 12. Ne4 {[%clk 0:02:31.9]}
12... Ba7 {[%clk 0:02:40.4]} 13. Bb2 {[%clk 0:02:30.9]} 13... Rh6 {[%clk
0:02:37.3]} 14. Ng3 {[%clk 0:02:17.5]} 14... Qh4 {[%clk 0:02:35.4]} 15. h3
{[%clk 0:02:17.8]} 15... d6 {[%clk 0:02:34.7]} 16. Qd5 {[%clk 0:02:06.1]} 16...
Rg6 {[%clk 0:01:48.4]} 17. Bxe5 {[%clk 0:01:36.1]} 17... Rxe5 {[%clk 0:01:43.6]}
18. Qf3 {[%clk 0:01:34.6]} 18... f6 {[%clk 0:01:17.8]} 19. Bd3 {[%clk
0:01:29.7]} 19... Rgg5 {[%clk 0:00:44]} 20. Qf4 {[%clk 0:01:17]} 20... Qh6
{[%clk 0:00:30.5]} 21. Ne4 {[%clk 0:00:55.8]} 21... Rgf5 {[%clk 0:00:25.7]} 22.
Qxh6 {[%clk 0:00:54.2]} 22... gxh6 {[%clk 0:00:24.4]} 23. Ng3 {[%clk 0:00:53]}
23... Rg5 {[%clk 0:00:24]} 24. Kh2 {[%clk 0:00:48.3]} 24... Kg7 {[%clk
0:00:20.1]} 25. f4 {[%clk 0:00:45.8]} 25... Rxg3 {[%clk 0:00:18.5]} 26. fxe5
{[%clk 0:00:45.8]} 26... Rxe3 {[%clk 0:00:16.6]} 27. exf6+ {[%clk 0:00:45.8]}
27... Kf7 {[%clk 0:00:15.1]} 28. Bxh7 {[%clk 0:00:43.8]} 28... Bd4 {[%clk
0:00:15.1]} 29. Rae1 {[%clk 0:00:40.1]} 29... Be5+ {[%clk 0:00:14.8]} 30. Kh1
{[%clk 0:00:39.5]} 30... Rxb3 {[%clk 0:00:14.3]} 31. Bg6+ {[%clk 0:00:34.3]}
31... Kf8 {[%clk 0:00:10.1]} 32. f7 {[%clk 0:00:31.5]} 32... Be6 {[%clk
0:00:09.1]} 33. Bh5 {[%clk 0:00:27.7]} 33... Bxc4 {[%clk 0:00:08.1]} 34. Rf6
{[%clk 0:00:25.9]} 34... Bd5 {[%clk 0:00:04.9]} 35. Rxh6 {[%clk 0:00:25.3]}
35... Rxh3+ {[%clk 0:00:04.4]} 36. Kg1 {[%clk 0:00:25.2]} 36... Bd4+ {[%clk
0:00:03.9]} 37. Kf1 {[%clk 0:00:25.5]} 37... Bc4+ {[%clk 0:00:03]} 38. Re2
{[%clk 0:00:20.5]} 38... Rh1# {[%clk 0:00:02.5]} 0-1

[Event "*** SCC Grand Prix: Titled Tuesday Blitz"]
[Site "Chess.com"]
[Date "2020.08.11"]
[Round "4"]
[White "ehrenfeld"]
[Black "140mariam"]
[Result "1/2-1/2"]
[WhiteElo "2546"]
[BlackElo "2342"]
[TimeControl "180+1"]
[EndTime "10:39:33 PDT"]
[Termination "Game drawn by repetition"]

1. e4 {[%clk 0:03:00.9]} 1... e6 {[%clk 0:02:23.9]} 2. d3 {[%clk 0:03:00.7]}
2... d5 {[%clk 0:02:24.4]} 3. Qe2 {[%clk 0:03:00.6]} 3... Be7 {[%clk 0:02:23.1]}
4. Nf3 {[%clk 0:03:00.4]} 4... Nf6 {[%clk 0:02:24]} 5. g3 {[%clk 0:03:00.3]}
5... O-O {[%clk 0:02:23.9]} 6. Bg2 {[%clk 0:03:00.2]} 6... c5 {[%clk 0:02:23.9]}
7. e5 {[%clk 0:03:00.2]} 7... Nfd7 {[%clk 0:02:24.2]} 8. c4 {[%clk 0:03:00.3]}
8... dxc4 {[%clk 0:02:19.6]} 9. dxc4 {[%clk 0:02:59.7]} 9... Nc6 {[%clk
0:02:20.5]} 10. O-O {[%clk 0:02:59]} 10... Qc7 {[%clk 0:02:18.9]} 11. Re1 {[%clk
0:02:58.5]} 11... b6 {[%clk 0:02:05.9]} 12. Nc3 {[%clk 0:02:57.8]} 12... Bb7
{[%clk 0:02:02]} 13. Bf4 {[%clk 0:02:57.3]} 13... a6 {[%clk 0:02:02]} 14. Rad1
{[%clk 0:02:56.2]} 14... Rad8 {[%clk 0:02:00.6]} 15. Nd5 {[%clk 0:02:53.9]}
15... exd5 {[%clk 0:01:47.4]} 16. cxd5 {[%clk 0:02:37.5]} 16... Ncxe5 {[%clk
0:01:47.8]} 17. Nxe5 {[%clk 0:02:37.1]} 17... Nxe5 {[%clk 0:01:47.8]} 18. Bxe5
{[%clk 0:02:37]} 18... Bd6 {[%clk 0:01:48.4]} 19. Bc3 {[%clk 0:02:36.3]} 19...
b5 {[%clk 0:01:43.3]} 20. b3 {[%clk 0:02:34.4]} 20... Qd7 {[%clk 0:01:36.2]} 21.
Qh5 {[%clk 0:02:26.7]} 21... Rfe8 {[%clk 0:01:11.5]} 22. Re4 {[%clk 0:01:58.4]}
22... Rxe4 {[%clk 0:01:09.4]} 23. Bxe4 {[%clk 0:01:57.8]} 23... h6 {[%clk
0:01:10]} 24. Bf5 {[%clk 0:01:42.3]} 24... Qe7 {[%clk 0:01:06.5]} 25. Re1 {[%clk
0:01:11.7]} 25... Qg5 {[%clk 0:01:06.5]} 26. Qf3 {[%clk 0:01:10.1]} 26... b4
{[%clk 0:01:02.3]} 27. h4 {[%clk 0:01:03.9]} 27... Qe7 {[%clk 0:00:29.3]} 28.
Rxe7 {[%clk 0:01:02.2]} 28... Bxe7 {[%clk 0:00:30.2]} 29. Qg4 {[%clk 0:00:59.4]}
29... bxc3 {[%clk 0:00:29.3]} 30. Be4 {[%clk 0:00:49.5]} 30... Bxd5 {[%clk
0:00:23.7]} 31. Bxd5 {[%clk 0:00:38]} 31... Rxd5 {[%clk 0:00:24]} 32. Qc4 {[%clk
0:00:31.2]} 32... Rd1+ {[%clk 0:00:22.5]} 33. Kg2 {[%clk 0:00:31.3]} 33... Bf6
{[%clk 0:00:23]} 34. Qxc5 {[%clk 0:00:25]} 34... Rd2 {[%clk 0:00:23.3]} 35. Qc8+
{[%clk 0:00:23.7]} 35... Kh7 {[%clk 0:00:23]} 36. Qf5+ {[%clk 0:00:21.5]} 36...
Kg8 {[%clk 0:00:21.1]} 37. Qc8+ {[%clk 0:00:20.7]} 37... Kh7 {[%clk 0:00:21.6]}
38. Qf5+ {[%clk 0:00:16.4]} 38... Kg8 {[%clk 0:00:21.8]} 39. Qc8+ {[%clk
0:00:16.4]} 1/2-1/2

[Event "*** SCC Grand Prix: Titled Tuesday Blitz"]
[Site "Chess.com"]
[Date "2020.08.11"]
[Round "4"]
[White "talaicito"]
[Black "allvim"]
[Result "0-1"]
[WhiteElo "2101"]
[BlackElo "2386"]
[TimeControl "180+1"]
[EndTime "10:39:33 PDT"]
[Termination "allvim won by resignation"]

1. d4 {[%clk 0:03:00.9]} 1... Nf6 {[%clk 0:02:59.9]} 2. Bf4 {[%clk 0:03:01.2]}
2... d5 {[%clk 0:02:59.6]} 3. Nc3 {[%clk 0:03:01.4]} 3... c6 {[%clk 0:02:56.2]}
4. e3 {[%clk 0:03:01.4]} 4... e6 {[%clk 0:02:53.8]} 5. Nf3 {[%clk 0:03:00.8]}
5... Bd6 {[%clk 0:02:54.1]} 6. Bd3 {[%clk 0:02:59.5]} 6... b6 {[%clk 0:02:49.8]}
7. O-O {[%clk 0:02:58.2]} 7... O-O {[%clk 0:02:48.2]} 8. Ne5 {[%clk 0:02:55.2]}
8... Bb7 {[%clk 0:02:47.3]} 9. g4 {[%clk 0:02:54.5]} 9... Bxe5 {[%clk 0:02:40]}
10. dxe5 {[%clk 0:02:53.9]} 10... Nfd7 {[%clk 0:02:39.5]} 11. Qf3 {[%clk
0:02:49.5]} 11... c5 {[%clk 0:02:36.6]} 12. Qh3 {[%clk 0:02:42.5]} 12... g6
{[%clk 0:02:31.1]} 13. Nb5 {[%clk 0:02:41.2]} 13... Nc6 {[%clk 0:02:25.1]} 14.
Nd6 {[%clk 0:02:37.3]} 14... Qc7 {[%clk 0:02:23.8]} 15. Qg3 {[%clk 0:02:35.8]}
15... f6 {[%clk 0:02:04.3]} 16. exf6 {[%clk 0:02:15.8]} 16... e5 {[%clk
0:02:04.5]} 17. f7+ {[%clk 0:02:08.2]} 17... Kh8 {[%clk 0:01:36.6]} 18. Nb5
{[%clk 0:01:37.1]} 18... exf4 {[%clk 0:01:30.2]} 19. Nxc7 {[%clk 0:01:35.5]}
19... fxg3 {[%clk 0:01:30.1]} 20. Nxa8 {[%clk 0:01:33.5]} 20... gxh2+ {[%clk
0:01:27.4]} 21. Kxh2 {[%clk 0:01:34.4]} 21... Bxa8 {[%clk 0:01:28]} 22. Kg3
{[%clk 0:01:23.8]} 22... Rxf7 {[%clk 0:01:28]} 23. Rh1 {[%clk 0:01:23]} 23...
Kg7 {[%clk 0:01:27.4]} 24. f4 {[%clk 0:01:18.9]} 24... Nb4 {[%clk 0:01:23.5]}
25. Rh2 {[%clk 0:01:18.5]} 25... Nxd3 {[%clk 0:01:21.7]} 26. cxd3 {[%clk
0:01:17.9]} 26... c4 {[%clk 0:01:22.3]} 27. Rah1 {[%clk 0:01:14.1]} 27... Kg8
{[%clk 0:01:20.5]} 28. d4 {[%clk 0:01:13.6]} 28... Nf6 {[%clk 0:01:20.5]} 29. a4
{[%clk 0:00:48.4]} 29... Bc6 {[%clk 0:01:18.5]} 30. a5 {[%clk 0:00:45.5]} 30...
b5 {[%clk 0:01:17.7]} 31. f5 {[%clk 0:00:38.8]} 31... g5 {[%clk 0:01:06]} 32.
Kf3 {[%clk 0:00:33.9]} 32... Re7 {[%clk 0:01:00.9]} 33. Rh6 {[%clk 0:00:32.9]}
33... Kg7 {[%clk 0:00:59]} 34. Rxf6 {[%clk 0:00:32.2]} 34... Kxf6 {[%clk
0:00:46.3]} 35. Rh6+ {[%clk 0:00:32.6]} 35... Kf7 {[%clk 0:00:45.8]} 36. Rxc6
{[%clk 0:00:33.3]} 36... b4 {[%clk 0:00:40.5]} 37. Rc5 {[%clk 0:00:26.2]} 37...
Rb7 {[%clk 0:00:36.6]} 38. Rxd5 {[%clk 0:00:24.3]} 38... c3 {[%clk 0:00:33.5]}
39. b3 {[%clk 0:00:11.7]} 39... Rc7 {[%clk 0:00:29.5]} 40. Ke2 {[%clk
0:00:02.3]} 40... c2 {[%clk 0:00:29.6]} 41. Rc5 {[%clk 0:00:02.4]} 41... Rxc5
{[%clk 0:00:29.2]} 42. dxc5 {[%clk 0:00:03.3]} 42... c1=Q {[%clk 0:00:29.4]} 0-1